[Event "Titled Tuesday Blitz April 12 Early 2022"]
[White "Guliev, Logman"]
[Black "parintele_chess"]
[WhiteFideId "13400061"]
[WhiteElo "2128"]
[BlackElo "2246"]
[Result "1/2-1/2"]
[Round "05"]
[TimeControl "180+1"]
[Date "2022.04.13"]
[WhiteClock "0:00:09"]
[BlackClock "0:00:11"]

1. c4 {[%clk 0:03:00]}  c5 {[%clk 0:02:58]} 2. g3 {[%clk 0:03:01]}  g6 {[%clk 0:02:58]} 3. Bg2 {[%clk 0:03:01]}  Bg7 {[%clk 0:02:58]} 4. Nf3 {[%clk 0:03:02]}  Nf6 {[%clk 0:02:58]} 5. O-O {[%clk 0:03:03]}  O-O {[%clk 0:02:58]} 6. e3 {[%clk 0:03:03]}  d5 {[%clk 0:02:44]} 7. cxd5 {[%clk 0:03:01]}  Nxd5 {[%clk 0:02:45]} 8. Nc3 {[%clk 0:03:01]}  Nc6 {[%clk 0:02:41]} 9. d4 {[%clk 0:02:59]}  cxd4 {[%clk 0:02:39]} 10. exd4 {[%clk 0:02:57]}  Bg4 {[%clk 0:02:23]} 11. Nxd5 {[%clk 0:02:46]}  Qxd5 {[%clk 0:02:22]} 12. Ne5 {[%clk 0:02:38]}  Qxg2+ {[%clk 0:01:53]} 13. Kxg2 {[%clk 0:02:36]}  Bxd1 {[%clk 0:01:53]} 14. Nxc6 {[%clk 0:02:34]}  bxc6 {[%clk 0:01:43]} 15. Rxd1 {[%clk 0:02:32]}  Rab8 {[%clk 0:01:38]} 16. Rb1 {[%clk 0:02:29]}  Rfd8 {[%clk 0:01:38]} 17. Be3 {[%clk 0:02:28]}  e5 {[%clk 0:01:25]} 18. dxe5 {[%clk 0:02:25]}  Bxe5 {[%clk 0:01:26]} 19. b3 {[%clk 0:02:05]}  a5 {[%clk 0:01:17]} 20. Rdc1 {[%clk 0:01:58]}  a4 {[%clk 0:01:04]} 21. Rxc6 {[%clk 0:01:51]}  axb3 {[%clk 0:01:04]} 22. axb3 {[%clk 0:01:52]}  Rb5 {[%clk 0:00:51]} 23. Rc5 {[%clk 0:01:48]}  Rdb8 {[%clk 0:00:47]} 24. Rxe5 {[%clk 0:01:46]}  Rxe5 {[%clk 0:00:46]} 25. Bf4 {[%clk 0:01:46]}  Reb5 {[%clk 0:00:19]} 26. Bxb8 {[%clk 0:01:45]}  Rxb8 {[%clk 0:00:20]} 27. b4 {[%clk 0:01:45]}  Kf8 {[%clk 0:00:17]} 28. b5 {[%clk 0:01:45]}  Ke7 {[%clk 0:00:17]} 29. Kf3 {[%clk 0:01:45]}  Kd6 {[%clk 0:00:18]} 30. Ke4 {[%clk 0:01:45]}  f6 {[%clk 0:00:18]} 31. Kd4 {[%clk 0:01:44]}  Rb6 {[%clk 0:00:17]} 32. Kc4 {[%clk 0:01:43]}  Kc7 {[%clk 0:00:16]} 33. Kc5 {[%clk 0:01:38]}  Re6 {[%clk 0:00:15]} 34. b6+ {[%clk 0:01:09]}  Kb7 {[%clk 0:00:15]} 35. Rd1 {[%clk 0:01:09]}  Rc6+ {[%clk 0:00:15]} 36. Kd5 {[%clk 0:01:09]}  Rxb6 {[%clk 0:00:13]} 37. Rd2 {[%clk 0:01:06]}  Kc7 {[%clk 0:00:12]} 38. Ra2 {[%clk 0:01:03]}  Rd6+ {[%clk 0:00:08]} 39. Kc5 {[%clk 0:01:01]}  Rc6+ {[%clk 0:00:06]} 40. Kd5 {[%clk 0:01:00]}  Rd6+ {[%clk 0:00:06]} 41. Ke4 {[%clk 0:01:01]}  Rd7 {[%clk 0:00:05]} 42. Ra6 {[%clk 0:01:00]}  Re7+ {[%clk 0:00:03]} 43. Kd5 {[%clk 0:00:59]}  Rd7+ {[%clk 0:00:04]} 44. Kc5 {[%clk 0:00:53]}  f5 {[%clk 0:00:04]} 45. f4 {[%clk 0:00:41]}  Kd8 {[%clk 0:00:04]} 46. Ra8+ {[%clk 0:00:38]}  Ke7 {[%clk 0:00:04]} 47. Rh8 {[%clk 0:00:38]}  Kf6 {[%clk 0:00:04]} 48. Kc6 {[%clk 0:00:37]}  Re7 {[%clk 0:00:04]} 49. Kd6 {[%clk 0:00:36]}  Ra7 {[%clk 0:00:03]} 50. Rf8+ {[%clk 0:00:30]}  Kg7 {[%clk 0:00:03]} 51. Rd8 {[%clk 0:00:30]}  Ra2 {[%clk 0:00:03]} 52. Rd7+ {[%clk 0:00:23]}  Kh6 {[%clk 0:00:04]} 53. Ke5 {[%clk 0:00:19]}  Rxh2 {[%clk 0:00:04]} 54. Kf6 {[%clk 0:00:19]}  Rg2 {[%clk 0:00:04]} 55. Rd3 {[%clk 0:00:19]}  Kh5 {[%clk 0:00:04]} 56. Kg7 {[%clk 0:00:14]}  h6 {[%clk 0:00:04]} 57. Rb3 {[%clk 0:00:12]}  Kg4 {[%clk 0:00:04]} 58. Kxg6 {[%clk 0:00:11]}  Rxg3 {[%clk 0:00:04]} 59. Rxg3+ {[%clk 0:00:08]}  Kxg3 {[%clk 0:00:05]} 60. Kxf5 {[%clk 0:00:09]}  h5 {[%clk 0:00:06]} 61. Kg5 {[%clk 0:00:09]}  h4 {[%clk 0:00:07]} 62. f5 {[%clk 0:00:09]}  h3 {[%clk 0:00:08]} 63. f6 {[%clk 0:00:10]}  h2 {[%clk 0:00:09]} 64. f7 {[%clk 0:00:11]}  h1=Q {[%clk 0:00:09]} 65. f8=Q {[%clk 0:00:11]}  Qh4+ {[%clk 0:00:10]} 66. Kg6 {[%clk 0:00:11]}  Qg4+ {[%clk 0:00:10]} 67. Kf7 {[%clk 0:00:10]}  Qf4+ {[%clk 0:00:10]} 68. Kg8 {[%clk 0:00:09]}  Qxf8+ {[%clk 0:00:11]} 69. Kxf8 {[%clk 0:00:09]} 1/2-1/2


[Site "https://www.chess.com"]

[Event "Titled Tuesday Blitz April 12 Early 2022"]
[White "Hasangatin, Ramil"]
[Black "Shtyka, Sergey"]
[WhiteFideId "4122160"]
[BlackFideId "4138465"]
[WhiteElo "2375"]
[BlackElo "2014"]
[Result "1/2-1/2"]
[Round "05"]
[TimeControl "180+1"]
[Date "2022.04.13"]
[WhiteClock "0:00:11"]
[BlackClock "0:00:11"]

1. d4 {[%clk 0:02:52]}  c5 {[%clk 0:03:00]} 2. d5 {[%clk 0:02:52]}  e5 {[%clk 0:03:01]} 3. Nc3 {[%clk 0:02:52]}  d6 {[%clk 0:03:01]} 4. e4 {[%clk 0:02:52]}  Be7 {[%clk 0:03:01]} 5. Be2 {[%clk 0:02:51]}  a6 {[%clk 0:03:01]} 6. Bg4 {[%clk 0:02:51]}  b5 {[%clk 0:02:56]} 7. Bxc8 {[%clk 0:02:50]}  Qxc8 {[%clk 0:02:56]} 8. a4 {[%clk 0:02:49]}  b4 {[%clk 0:02:53]} 9. Nce2 {[%clk 0:02:49]}  Nf6 {[%clk 0:02:49]} 10. Ng3 {[%clk 0:02:49]}  O-O {[%clk 0:02:42]} 11. Nf3 {[%clk 0:02:48]}  g6 {[%clk 0:02:40]} 12. Qe2 {[%clk 0:02:45]}  Nbd7 {[%clk 0:02:32]} 13. a5 {[%clk 0:02:44]}  c4 {[%clk 0:02:31]} 14. O-O {[%clk 0:02:38]}  c3 {[%clk 0:02:28]} 15. b3 {[%clk 0:02:31]}  Nc5 {[%clk 0:02:23]} 16. Ne1 {[%clk 0:02:25]}  Qb7 {[%clk 0:02:11]} 17. f3 {[%clk 0:02:22]}  Qb5 {[%clk 0:02:08]} 18. Be3 {[%clk 0:02:20]}  Qxe2 {[%clk 0:02:05]} 19. Nxe2 {[%clk 0:02:20]}  Rfc8 {[%clk 0:02:00]} 20. Nc1 {[%clk 0:02:18]}  Nfd7 {[%clk 0:01:58]} 21. Ned3 {[%clk 0:02:17]}  Rab8 {[%clk 0:01:53]} 22. Rd1 {[%clk 0:02:14]}  f5 {[%clk 0:01:52]} 23. Nxc5 {[%clk 0:02:03]}  Nxc5 {[%clk 0:01:51]} 24. Bxc5 {[%clk 0:01:57]}  Rxc5 {[%clk 0:01:50]} 25. Nd3 {[%clk 0:01:53]}  Rcb5 {[%clk 0:01:50]} 26. Ra4 {[%clk 0:01:53]}  Bd8 {[%clk 0:01:45]} 27. Rda1 {[%clk 0:01:52]}  Kf7 {[%clk 0:01:42]} 28. Kf2 {[%clk 0:01:52]}  h5 {[%clk 0:01:40]} 29. Ke2 {[%clk 0:01:51]}  Kf6 {[%clk 0:01:37]} 30. g3 {[%clk 0:01:51]}  Bc7 {[%clk 0:01:34]} 31. h3 {[%clk 0:01:50]}  Bd8 {[%clk 0:01:29]} 32. Rg1 {[%clk 0:01:31]}  Rxa5 {[%clk 0:01:24]} 33. Rxb4 {[%clk 0:01:21]}  Rxb4 {[%clk 0:01:19]} 34. Nxb4 {[%clk 0:01:22]}  Bb6 {[%clk 0:01:18]} 35. Rc1 {[%clk 0:01:14]}  Bc5 {[%clk 0:01:16]} 36. Nc6 {[%clk 0:01:11]}  Ra2 {[%clk 0:01:01]} 37. Kd3 {[%clk 0:01:11]}  Ba3 {[%clk 0:01:00]} 38. Rg1 {[%clk 0:01:00]}  Bb2 {[%clk 0:01:00]} 39. b4 {[%clk 0:00:52]}  g5 {[%clk 0:00:51]} 40. g4 {[%clk 0:00:51]}  fxg4 {[%clk 0:00:46]} 41. fxg4 {[%clk 0:00:51]}  hxg4 {[%clk 0:00:46]} 42. hxg4 {[%clk 0:00:51]}  Ra4 {[%clk 0:00:42]} 43. Rf1+ {[%clk 0:00:51]}  Kg7 {[%clk 0:00:42]} 44. Rf5 {[%clk 0:00:36]}  Bc1 {[%clk 0:00:33]} 45. Rf1 {[%clk 0:00:31]}  Bd2 {[%clk 0:00:30]} 46. Rb1 {[%clk 0:00:25]}  Ra2 {[%clk 0:00:27]} 47. Rh1 {[%clk 0:00:19]}  Ra4 {[%clk 0:00:26]} 48. Kc4 {[%clk 0:00:17]}  Ra2 {[%clk 0:00:24]} 49. Kd3 {[%clk 0:00:17]}  Ra4 {[%clk 0:00:24]} 50. Rd1 {[%clk 0:00:17]}  Ra2 {[%clk 0:00:23]} 51. Ne7 {[%clk 0:00:14]}  a5 {[%clk 0:00:15]} 52. Nf5+ {[%clk 0:00:13]}  Kg6 {[%clk 0:00:15]} 53. bxa5 {[%clk 0:00:13]}  Rxa5 {[%clk 0:00:13]} 54. Nxd6 {[%clk 0:00:14]}  Ra4 {[%clk 0:00:13]} 55. Nf5 {[%clk 0:00:14]}  Rb4 {[%clk 0:00:12]} 56. Ra1 {[%clk 0:00:14]}  Rb6 {[%clk 0:00:11]} 57. Rh1 {[%clk 0:00:12]}  Rb8 {[%clk 0:00:11]} 58. Rh6+ {[%clk 0:00:12]}  Kf7 {[%clk 0:00:11]} 59. Nd6+ {[%clk 0:00:12]}  Kg7 {[%clk 0:00:11]} 60. Nf5+ {[%clk 0:00:12]}  Kf7 {[%clk 0:00:11]} 61. Rh7+ {[%clk 0:00:11]}  Kf6 {[%clk 0:00:11]} 62. Rh6+ {[%clk 0:00:11]}  Kf7 {[%clk 0:00:11]} 1/2-1/2


[Site "https://www.chess.com"]

[Event "Titled Tuesday Blitz April 12 Early 2022"]
[White "Hernandez Jimenez, Alexander Andres"]
[Black "Ibadov, Dashgyn"]
[WhiteFideId "3900452"]
[BlackFideId "24107514"]
[WhiteElo "2098"]
[BlackElo "2138"]
[Result "0-1"]
[Round "05"]
[TimeControl "180+1"]
[Date "2022.04.13"]
[WhiteClock "0:00:02"]
[BlackClock "0:00:05"]

1. e4 {[%clk 0:02:55]}  e5 {[%clk 0:02:57]} 2. Nf3 {[%clk 0:02:55]}  Nc6 {[%clk 0:02:57]} 3. Bc4 {[%clk 0:02:55]}  Bc5 {[%clk 0:02:56]} 4. d3 {[%clk 0:02:55]}  Nf6 {[%clk 0:02:57]} 5. O-O {[%clk 0:02:55]}  d6 {[%clk 0:02:57]} 6. c3 {[%clk 0:02:53]}  a6 {[%clk 0:02:57]} 7. a4 {[%clk 0:02:51]}  Ba7 {[%clk 0:02:56]} 8. Nbd2 {[%clk 0:02:46]}  O-O {[%clk 0:02:56]} 9. Re1 {[%clk 0:02:46]}  Kh8 {[%clk 0:02:37]} 10. Nf1 {[%clk 0:02:45]}  Ng4 {[%clk 0:02:37]} 11. Ne3 {[%clk 0:02:42]}  Nxe3 {[%clk 0:02:31]} 12. Bxe3 {[%clk 0:02:42]}  Bxe3 {[%clk 0:02:28]} 13. fxe3 {[%clk 0:02:42]}  f5 {[%clk 0:02:25]} 14. exf5 {[%clk 0:02:42]}  Bxf5 {[%clk 0:02:26]} 15. e4 {[%clk 0:02:42]}  Bg4 {[%clk 0:02:26]} 16. Rf1 {[%clk 0:02:42]}  Qd7 {[%clk 0:02:19]} 17. h3 {[%clk 0:02:40]}  Bh5 {[%clk 0:02:17]} 18. g4 {[%clk 0:02:40]}  Bf7 {[%clk 0:01:57]} 19. Bxf7 {[%clk 0:02:15]}  Rxf7 {[%clk 0:01:58]} 20. Ng5 {[%clk 0:02:11]}  Rxf1+ {[%clk 0:01:57]} 21. Qxf1 {[%clk 0:02:10]}  h6 {[%clk 0:01:57]} 22. Nf3 {[%clk 0:02:04]}  Rf8 {[%clk 0:01:58]} 23. Qg2 {[%clk 0:02:02]}  Ne7 {[%clk 0:01:45]} 24. Nh4 {[%clk 0:02:02]}  Qe6 {[%clk 0:01:12]} 25. Rf1 {[%clk 0:01:57]}  Rxf1+ {[%clk 0:01:09]} 26. Qxf1 {[%clk 0:01:56]}  Kg8 {[%clk 0:01:10]} 27. c4 {[%clk 0:01:46]}  c6 {[%clk 0:01:05]} 28. Kg2 {[%clk 0:01:24]}  d5 {[%clk 0:01:05]} 29. Qe2 {[%clk 0:01:21]}  dxc4 {[%clk 0:01:02]} 30. dxc4 {[%clk 0:01:21]}  Qd7 {[%clk 0:00:51]} 31. Kf3 {[%clk 0:01:11]}  Qd4 {[%clk 0:00:48]} 32. b3 {[%clk 0:01:08]}  g6 {[%clk 0:00:42]} 33. Qe3 {[%clk 0:01:03]}  Qb2 {[%clk 0:00:40]} 34. Qxh6 {[%clk 0:00:56]}  Qxb3+ {[%clk 0:00:40]} 35. Kg2 {[%clk 0:00:48]}  Qxc4 {[%clk 0:00:37]} 36. Kf3 {[%clk 0:00:28]}  Qd3+ {[%clk 0:00:36]} 37. Qe3 {[%clk 0:00:28]}  Qd1+ {[%clk 0:00:31]} 38. Kg3 {[%clk 0:00:24]}  Qxa4 {[%clk 0:00:27]} 39. Nf3 {[%clk 0:00:23]}  Qb5 {[%clk 0:00:20]} 40. Qg5 {[%clk 0:00:22]}  Qc5 {[%clk 0:00:20]} 41. Nxe5 {[%clk 0:00:17]}  Kg7 {[%clk 0:00:17]} 42. h4 {[%clk 0:00:15]}  Qg1+ {[%clk 0:00:15]} 43. Kh3 {[%clk 0:00:13]}  Qh1+ {[%clk 0:00:14]} 44. Kg3 {[%clk 0:00:13]}  Qe1+ {[%clk 0:00:14]} 45. Kf3 {[%clk 0:00:11]}  Qc3+ {[%clk 0:00:12]} 46. Kf2 {[%clk 0:00:09]}  Qd4+ {[%clk 0:00:09]} 47. Kf3 {[%clk 0:00:09]}  Qd6 {[%clk 0:00:09]} 48. h5 {[%clk 0:00:08]}  Qf6+ {[%clk 0:00:07]} 49. Qxf6+ {[%clk 0:00:07]}  Kxf6 {[%clk 0:00:08]} 50. Nd7+ {[%clk 0:00:06]}  Kg5 {[%clk 0:00:06]} 51. hxg6 {[%clk 0:00:03]}  Nxg6 {[%clk 0:00:07]} 52. Nc5 {[%clk 0:00:02]}  Ne5+ {[%clk 0:00:06]} 53. Ke2 {[%clk 0:00:02]}  Kxg4 {[%clk 0:00:04]} 54. Nxb7 {[%clk 0:00:02]}  Kf4 {[%clk 0:00:05]} 0-1


[Site "https://www.chess.com"]

[Event "Titled Tuesday Blitz April 12 Early 2022"]
[White "Hnydiuk, Aleksander"]
[Black "Zaksaite, Salomeja"]
[WhiteFideId "1109057"]
[BlackFideId "12801496"]
[WhiteElo "2374"]
[BlackElo "1953"]
[Result "1-0"]
[Round "05"]
[TimeControl "180+1"]
[Date "2022.04.13"]
[WhiteClock "0:00:17"]
[BlackClock "0:00:03"]

1. Nf3 {[%clk 0:03:00]}  Nf6 {[%clk 0:02:55]} 2. c4 {[%clk 0:03:00]}  g6 {[%clk 0:02:55]} 3. g3 {[%clk 0:02:59]}  Bg7 {[%clk 0:02:55]} 4. Bg2 {[%clk 0:03:00]}  d5 {[%clk 0:02:55]} 5. cxd5 {[%clk 0:02:59]}  Nxd5 {[%clk 0:02:55]} 6. d4 {[%clk 0:02:59]}  Nb6 {[%clk 0:02:53]} 7. Nc3 {[%clk 0:02:58]}  Nc6 {[%clk 0:02:52]} 8. e3 {[%clk 0:02:58]}  O-O {[%clk 0:02:52]} 9. O-O {[%clk 0:02:58]}  a5 {[%clk 0:02:43]} 10. d5 {[%clk 0:02:38]}  Ne5 {[%clk 0:02:36]} 11. Nd4 {[%clk 0:02:30]}  Bd7 {[%clk 0:02:29]} 12. h3 {[%clk 0:02:22]}  Qc8 {[%clk 0:02:28]} 13. Kh2 {[%clk 0:02:22]}  c6 {[%clk 0:02:28]} 14. e4 {[%clk 0:02:11]}  cxd5 {[%clk 0:02:27]} 15. exd5 {[%clk 0:02:12]}  Nec4 {[%clk 0:02:18]} 16. Rb1 {[%clk 0:01:54]}  Qc5 {[%clk 0:02:06]} 17. Nb3 {[%clk 0:01:49]}  Qb4 {[%clk 0:02:04]} 18. a3 {[%clk 0:01:41]}  Nxa3 {[%clk 0:02:03]} 19. Na2 {[%clk 0:01:36]}  Nxb1 {[%clk 0:01:25]} 20. Nxb4 {[%clk 0:01:35]}  axb4 {[%clk 0:01:26]} 21. Be4 {[%clk 0:01:21]}  Bf5 {[%clk 0:01:20]} 22. Bxf5 {[%clk 0:01:21]}  gxf5 {[%clk 0:01:20]} 23. Bg5 {[%clk 0:01:11]}  Ra2 {[%clk 0:00:52]} 24. Qxb1 {[%clk 0:01:04]}  Rxb2 {[%clk 0:00:52]} 25. Qd3 {[%clk 0:01:04]}  Rc8 {[%clk 0:00:51]} 26. Bxe7 {[%clk 0:00:36]}  Nd7 {[%clk 0:00:39]} 27. Qxf5 {[%clk 0:00:32]}  Nb6 {[%clk 0:00:17]} 28. d6 {[%clk 0:00:31]}  Rxb3 {[%clk 0:00:14]} 29. Qxc8+ {[%clk 0:00:29]}  Nxc8 {[%clk 0:00:13]} 30. d7 {[%clk 0:00:30]}  Nxe7 {[%clk 0:00:04]} 31. d8=Q+ {[%clk 0:00:30]}  Bf8 {[%clk 0:00:05]} 32. Re1 {[%clk 0:00:29]}  Ng6 {[%clk 0:00:04]} 33. h4 {[%clk 0:00:26]}  h5 {[%clk 0:00:03]} 34. Qd5 {[%clk 0:00:23]}  Rb2 {[%clk 0:00:03]} 35. Kg1 {[%clk 0:00:19]}  b3 {[%clk 0:00:02]} 36. Re3 {[%clk 0:00:18]}  Rb1+ {[%clk 0:00:02]} 37. Kg2 {[%clk 0:00:18]}  b2 {[%clk 0:00:03]} 38. Rb3 {[%clk 0:00:18]}  Bg7 {[%clk 0:00:03]} 39. Rxb7 {[%clk 0:00:17]} 1-0


[Site "https://www.chess.com"]

[Event "Titled Tuesday Blitz April 12 Early 2022"]
[White "Jakubowska, Anna"]
[Black "Vusatiuk, Vladimir"]
[WhiteFideId "1121952"]
[BlackFideId "14118610"]
[WhiteElo "1924"]
[BlackElo "2157"]
[Result "1-0"]
[Round "05"]
[TimeControl "180+1"]
[Date "2022.04.13"]
[WhiteClock "0:01:32"]
[BlackClock "0:00:02"]

1. e4 {[%clk 0:03:00]}  c5 {[%clk 0:02:59]} 2. Nc3 {[%clk 0:03:00]}  Nc6 {[%clk 0:02:58]} 3. g3 {[%clk 0:03:00]}  g6 {[%clk 0:02:57]} 4. Bg2 {[%clk 0:03:00]}  Bg7 {[%clk 0:02:58]} 5. d3 {[%clk 0:03:00]}  d6 {[%clk 0:02:56]} 6. Nh3 {[%clk 0:03:00]}  e5 {[%clk 0:02:50]} 7. O-O {[%clk 0:02:59]}  Nge7 {[%clk 0:02:48]} 8. f4 {[%clk 0:02:58]}  O-O {[%clk 0:02:34]} 9. f5 {[%clk 0:02:57]}  gxf5 {[%clk 0:02:18]} 10. exf5 {[%clk 0:02:56]}  Bxf5 {[%clk 0:02:12]} 11. Rxf5 {[%clk 0:02:55]}  Nxf5 {[%clk 0:02:08]} 12. Be4 {[%clk 0:02:56]}  Ncd4 {[%clk 0:01:19]} 13. Qh5 {[%clk 0:02:53]}  Qf6 {[%clk 0:00:40]} 14. Nd5 {[%clk 0:02:51]}  Qg6 {[%clk 0:00:41]} 15. Qd1 {[%clk 0:02:41]}  Rae8 {[%clk 0:00:21]} 16. c3 {[%clk 0:02:36]}  Nc6 {[%clk 0:00:20]} 17. g4 {[%clk 0:02:33]}  Nce7 {[%clk 0:00:15]} 18. Nxe7+ {[%clk 0:02:32]}  Nxe7 {[%clk 0:00:15]} 19. Bxg6 {[%clk 0:02:31]}  fxg6 {[%clk 0:00:16]} 20. Bg5 {[%clk 0:02:26]}  Nc6 {[%clk 0:00:13]} 21. Qe2 {[%clk 0:02:24]}  Kh8 {[%clk 0:00:13]} 22. Rf1 {[%clk 0:02:24]}  Rxf1+ {[%clk 0:00:12]} 23. Qxf1 {[%clk 0:02:24]}  Rf8 {[%clk 0:00:13]} 24. Qe2 {[%clk 0:02:23]}  d5 {[%clk 0:00:12]} 25. Nf2 {[%clk 0:02:22]}  h6 {[%clk 0:00:13]} 26. Bd2 {[%clk 0:02:20]}  b5 {[%clk 0:00:10]} 27. Be3 {[%clk 0:02:08]}  d4 {[%clk 0:00:10]} 28. cxd4 {[%clk 0:02:08]}  cxd4 {[%clk 0:00:08]} 29. Bd2 {[%clk 0:02:08]}  Ne7 {[%clk 0:00:08]} 30. Ne4 {[%clk 0:02:08]}  Nd5 {[%clk 0:00:08]} 31. Nd6 {[%clk 0:01:55]}  Rf6 {[%clk 0:00:08]} 32. Nxb5 {[%clk 0:01:54]}  Rb6 {[%clk 0:00:08]} 33. a4 {[%clk 0:01:48]}  a6 {[%clk 0:00:08]} 34. Ba5 {[%clk 0:01:48]}  Rb7 {[%clk 0:00:08]} 35. Nd6 {[%clk 0:01:47]}  Rd7 {[%clk 0:00:08]} 36. Nc4 {[%clk 0:01:47]}  Nf4 {[%clk 0:00:08]} 37. Qe4 {[%clk 0:01:46]}  Rf7 {[%clk 0:00:04]} 38. Nxe5 {[%clk 0:01:43]}  Nh3+ {[%clk 0:00:03]} 39. Kg2 {[%clk 0:01:42]}  Rf2+ {[%clk 0:00:02]} 40. Kxh3 {[%clk 0:01:41]}  Bf6 {[%clk 0:00:02]} 41. Nxg6+ {[%clk 0:01:35]}  Kg7 {[%clk 0:00:03]} 42. Nf4 {[%clk 0:01:33]}  Bg5 {[%clk 0:00:03]} 43. Qg6+ {[%clk 0:01:32]}  Kf8 {[%clk 0:00:03]} 44. Bb4+ {[%clk 0:01:32]}  Be7 {[%clk 0:00:02]} 45. Ne6# {[%clk 0:01:32]} 1-0


[Site "https://www.chess.com"]

[Event "Titled Tuesday Blitz April 12 Early 2022"]
[White "Jaskolka, Tomasz"]
[Black "Lobachev, Yury"]
[WhiteFideId "1170791"]
[BlackFideId "24138177"]
[WhiteElo "2073"]
[BlackElo "2309"]
[Result "1-0"]
[Round "05"]
[TimeControl "180+1"]
[Date "2022.04.13"]
[WhiteClock "0:01:02"]
[BlackClock "0:01:39"]

1. d4 {[%clk 0:03:00]}  c5 {[%clk 0:02:59]} 2. d5 {[%clk 0:03:00]}  b5 {[%clk 0:02:59]} 3. a4 {[%clk 0:02:59]}  b4 {[%clk 0:02:59]} 4. e4 {[%clk 0:03:00]}  a5 {[%clk 0:02:59]} 5. b3 {[%clk 0:02:59]}  d6 {[%clk 0:02:59]} 6. Bb2 {[%clk 0:02:59]}  Nf6 {[%clk 0:02:59]} 7. Nd2 {[%clk 0:02:58]}  g6 {[%clk 0:02:59]} 8. f4 {[%clk 0:02:52]}  Bg7 {[%clk 0:02:59]} 9. Ngf3 {[%clk 0:02:52]}  O-O {[%clk 0:02:59]} 10. Bd3 {[%clk 0:02:51]}  Re8 {[%clk 0:02:59]} 11. O-O {[%clk 0:02:51]}  Nxe4 {[%clk 0:02:59]} 12. Bxg7 {[%clk 0:02:33]}  Nxd2 {[%clk 0:02:59]} 13. Qxd2 {[%clk 0:02:29]}  Kxg7 {[%clk 0:02:59]} 14. f5 {[%clk 0:02:29]}  Nd7 {[%clk 0:02:40]} 15. Qg5 {[%clk 0:02:13]}  Ba6 {[%clk 0:02:25]} 16. fxg6 {[%clk 0:02:11]}  hxg6 {[%clk 0:02:23]} 17. Bxa6 {[%clk 0:01:17]}  Rxa6 {[%clk 0:02:24]} 18. Nh4 {[%clk 0:01:17]}  e6 {[%clk 0:01:52]} 19. Rxf7+ {[%clk 0:01:03]}  Kxf7 {[%clk 0:01:39]} 20. Qxg6+ {[%clk 0:01:02]} 1-0


[Site "https://www.chess.com"]

[Event "Titled Tuesday Blitz April 12 Early 2022"]
[White "Jumabayev, Rinat"]
[Black "Narayanan.S.L"]
[WhiteFideId "13702661"]
[BlackFideId "5058422"]
[WhiteElo "2561"]
[BlackElo "2494"]
[Result "1-0"]
[Round "05"]
[TimeControl "180+1"]
[Date "2022.04.12"]
[WhiteClock "0:00:05"]
[BlackClock "0:00:03"]

1. d4 {[%clk 0:03:00]}  Nf6 {[%clk 0:02:59]} 2. c4 {[%clk 0:03:01]}  g6 {[%clk 0:02:59]} 3. g3 {[%clk 0:02:57]}  c6 {[%clk 0:02:58]} 4. Bg2 {[%clk 0:02:54]}  d5 {[%clk 0:02:58]} 5. Nf3 {[%clk 0:02:54]}  Bg7 {[%clk 0:02:58]} 6. O-O {[%clk 0:02:55]}  O-O {[%clk 0:02:59]} 7. Nbd2 {[%clk 0:02:55]}  Bf5 {[%clk 0:02:58]} 8. b3 {[%clk 0:02:54]}  Nbd7 {[%clk 0:02:57]} 9. Bb2 {[%clk 0:02:52]}  Ne4 {[%clk 0:02:55]} 10. Nh4 {[%clk 0:02:32]}  Nxd2 {[%clk 0:02:49]} 11. Qxd2 {[%clk 0:02:33]}  Be6 {[%clk 0:02:49]} 12. e4 {[%clk 0:02:25]}  dxe4 {[%clk 0:02:26]} 13. Bxe4 {[%clk 0:01:39]}  Nf6 {[%clk 0:02:24]} 14. Bg2 {[%clk 0:01:39]}  Qd7 {[%clk 0:02:24]} 15. Nf3 {[%clk 0:01:36]}  Bh3 {[%clk 0:02:22]} 16. Ne5 {[%clk 0:01:23]}  Qc8 {[%clk 0:02:22]} 17. Rfe1 {[%clk 0:01:22]}  Bxg2 {[%clk 0:02:22]} 18. Kxg2 {[%clk 0:01:23]}  Nd7 {[%clk 0:02:03]} 19. Ng4 {[%clk 0:01:18]}  Re8 {[%clk 0:01:57]} 20. d5 {[%clk 0:01:09]}  cxd5 {[%clk 0:01:57]} 21. cxd5 {[%clk 0:00:58]}  h5 {[%clk 0:01:24]} 22. Bxg7 {[%clk 0:00:26]}  Kxg7 {[%clk 0:01:22]} 23. Rac1 {[%clk 0:00:26]}  Qd8 {[%clk 0:01:20]} 24. Qh6+ {[%clk 0:00:23]}  Kg8 {[%clk 0:01:19]} 25. Ne3 {[%clk 0:00:16]}  Nf6 {[%clk 0:01:15]} 26. Rcd1 {[%clk 0:00:15]}  Rc8 {[%clk 0:00:43]} 27. Re2 {[%clk 0:00:13]}  Rc5 {[%clk 0:00:32]} 28. Red2 {[%clk 0:00:12]}  Qd7 {[%clk 0:00:29]} 29. d6 {[%clk 0:00:12]}  exd6 {[%clk 0:00:25]} 30. Rxd6 {[%clk 0:00:12]}  Qe7 {[%clk 0:00:26]} 31. Qf4 {[%clk 0:00:07]}  Kg7 {[%clk 0:00:16]} 32. h4 {[%clk 0:00:04]}  Qe4+ {[%clk 0:00:15]} 33. Qxe4 {[%clk 0:00:04]}  Rxe4 {[%clk 0:00:15]} 34. R6d2 {[%clk 0:00:03]}  Re6 {[%clk 0:00:14]} 35. Rd6 {[%clk 0:00:03]}  Ree5 {[%clk 0:00:08]} 36. Kf3 {[%clk 0:00:03]}  Re7 {[%clk 0:00:05]} 37. R6d4 {[%clk 0:00:03]}  Rec7 {[%clk 0:00:04]} 38. R1d3 {[%clk 0:00:03]}  a5 {[%clk 0:00:04]} 39. Rc4 {[%clk 0:00:03]}  Rxc4 {[%clk 0:00:04]} 40. Nxc4 {[%clk 0:00:04]}  a4 {[%clk 0:00:05]} 41. Nb2 {[%clk 0:00:02]}  a3 {[%clk 0:00:05]} 42. Nc4 {[%clk 0:00:02]}  Rc5 {[%clk 0:00:05]} 43. Nxa3 {[%clk 0:00:03]}  Nd5 {[%clk 0:00:06]} 44. Nc4 {[%clk 0:00:03]}  Nb4 {[%clk 0:00:06]} 45. Rd2 {[%clk 0:00:03]}  b5 {[%clk 0:00:06]} 46. Ne3 {[%clk 0:00:04]}  Rc1 {[%clk 0:00:05]} 47. Rd7 {[%clk 0:00:02]}  Nc6 {[%clk 0:00:04]} 48. Rb7 {[%clk 0:00:02]}  Ra1 {[%clk 0:00:03]} 49. Ke4 {[%clk 0:00:02]}  Rxa2 {[%clk 0:00:03]} 50. f4 {[%clk 0:00:02]}  b4 {[%clk 0:00:02]} 51. f5 {[%clk 0:00:03]}  Ra5 {[%clk 0:00:02]} 52. fxg6 {[%clk 0:00:03]}  Re5+ {[%clk 0:00:02]} 53. Kf4 {[%clk 0:00:03]}  Kxg6 {[%clk 0:00:03]} 54. Rb6 {[%clk 0:00:03]}  Re6 {[%clk 0:00:03]} 55. Nf5 {[%clk 0:00:03]}  Kf6 {[%clk 0:00:02]} 56. Ne3 {[%clk 0:00:02]}  Nd4 {[%clk 0:00:03]} 57. Rxb4 {[%clk 0:00:01]}  Ne2+ {[%clk 0:00:02]} 58. Kf3 {[%clk 0:00:02]}  Nxg3 {[%clk 0:00:03]} 59. Nd5+ {[%clk 0:00:02]}  Ke5 {[%clk 0:00:04]} 60. Nf4 {[%clk 0:00:02]}  Rc6 {[%clk 0:00:02]} 61. Kxg3 {[%clk 0:00:03]}  Rc3+ {[%clk 0:00:03]} 62. Kf2 {[%clk 0:00:04]}  Kf5 {[%clk 0:00:03]} 63. Ne2 {[%clk 0:00:04]}  Rd3 {[%clk 0:00:03]} 64. Rc4 {[%clk 0:00:04]}  Ke5 {[%clk 0:00:02]} 65. b4 {[%clk 0:00:05]}  Rb3 {[%clk 0:00:03]} 66. Rc5+ {[%clk 0:00:05]}  Ke4 {[%clk 0:00:03]} 67. Rxh5 {[%clk 0:00:06]}  Rxb4 {[%clk 0:00:03]} 68. Rg5 {[%clk 0:00:05]}  f6 {[%clk 0:00:03]} 69. Rg4+ {[%clk 0:00:05]} 1-0


[Site "https://www.chess.com"]